bitfinex/quotes_ETHUSD_20241001
["timestamp","ask_amount","ask_price","bid_price","bid_amount"]
[1727765001091,1.60510329,2649.1,2649.0,0.11587071]
[1727765001491,1.60510329,2649.1,2648.7,20.2438]
[1727765001699,1.60510329,2649.1,2649.0,0.11594831]
[1727765001998,1.60510329,2649.1,2648.7,20.2438]
[1727765002290,1.60510329,2649.0,2648.7,20.2438]
[1727765002590,5.38019329,2649.0,2648.8,0.1160716]
[1727765002953,5.38019329,2649.0,2648.5,23.96224]
[1727765003152,5.38019329,2649.0,2648.9,0.11600996]
[1727765003669,5.38019329,2649.0,2648.5,23.96224]
[1727765003868,5.38019329,2649.0,2648.9,0.11600996]
[1727765004083,5.38019329,2649.0,2648.5,23.96224]
[1727765004254,9.15531329,2649.0,2648.5,20.1866]
[1727765004566,4.59676,2648.9,2648.6,0.11619491]
[1727765005525,1.60510329,2648.8,2648.6,0.11619491]
[1727765006020,1.60510329,2648.8,2648.4,23.20576]
[1727765006556,1.60510329,2648.8,2648.5,0.11625657]
[1727765018188,5.38040329,2648.8,2648.5,0.11625657]
[1727765018628,5.38040329,2648.8,2648.3,23.9695]
[1727765018786,5.38040329,2648.8,2648.4,0.11647635]
[1727765019198,1.60510329,2648.8,2648.4,0.11647635]
[1727765020304,5.38040329,2648.8,2648.4,0.11647635]
[1727765020731,1.60510329,2648.8,2648.4,0.11647635]
[1727765021229,5.38040329,2648.8,2648.4,0.11647635]
[1727765021933,3.77544,2648.7,2648.4,0.11647635]
[1727765022397,1.60510329,2648.8,2648.4,0.11647635]
[1727765023592,2.60281862,2648.8,2648.4,0.11647635]
[1727765023793,0.7788,2648.5,2648.4,0.11647635]
[1727765024001,0.7788,2648.5,2648.2,19.43]
[1727765024224,0.7788,2648.5,2648.3,0.11658402]
[1727765024537,0.7788,2648.5,2648.2,19.43]
[1727765024833,0.7788,2648.5,2648.3,0.11658689]
[1727765025018,0.7788,2648.5,2648.2,19.43]
[1727765025220,0.7788,2648.5,2648.3,0.11658689]
[1727765025424,5.38069329,2648.6,2648.2,19.43]
[1727765025589,1.60510329,2648.6,2648.3,0.11658689]
[1727765025793,5.38074329,2648.6,2648.2,19.43]
[1727765025990,5.38070329,2648.6,2648.2,19.43]
[1727765026194,3.77545,2648.7,2648.3,0.11658689]
[1727765026393,3.77545,2648.7,2648.2,19.43]
[1727765026627,3.77545,2648.7,2648.3,0.11658689]
[1727765026840,3.77545,2648.7,2648.2,19.43]
[1727765026994,3.77545,2648.7,2648.3,0.11673639]
[1727765027194,3.77561,2648.6,2648.2,19.43]
[1727765027434,3.77545,2648.7,2648.3,0.11673639]
[1727765027652,7.55101,2648.7,2648.2,19.43]
[1727765027846,3.77545,2648.7,2648.3,0.11673639]
[1727765027998,3.77545,2648.7,2648.2,23.20609]
[1727765028200,3.77545,2648.7,2648.3,0.11673639]
[1727765028507,3.77545,2648.7,2648.2,23.20609]
[1727765028835,3.77545,2648.7,2648.3,0.11673639]
[1727765029035,3.77545,2648.7,2648.2,23.20614]
[1727765029238,3.77545,2648.7,2648.3,0.11673639]
[1727765029547,7.55098,2648.7,2648.2,19.43]
[1727765029838,3.77545,2648.7,2648.3,0.11673639]
[1727765029997,3.77545,2648.7,2648.2,23.20614]
[1727765030345,3.77545,2648.7,2648.3,0.11673639]
[1727765030641,3.77545,2648.7,2648.2,23.20614]
[1727765030835,3.77545,2648.7,2648.3,0.11673639]
[1727765031130,7.55097,2648.7,2648.2,23.20614]
[1727765031340,3.77565,2648.6,2648.4,0.11667472]
[1727765031611,3.77545,2648.7,2648.3,0.11673639]
[1727765031759,3.77545,2648.7,2648.5,0.11661305]
[1727765032092,3.77545,2648.7,2648.6,0.11655139]
[1727765032545,3.77545,2648.7,2648.2,23.20611]
[1727765032745,3.77545,2648.7,2648.6,0.11655139]
[1727765032975,3.77545,2648.7,2648.2,23.20612]
[1727765033174,3.77545,2648.7,2648.6,0.11655139]
[1727765033376,3.77545,2648.7,2648.2,19.43]
[1727765033543,3.77545,2648.7,2648.6,0.11655139]
[1727765033742,3.77545,2648.7,2648.2,19.43]
[1727765033983,3.77545,2648.7,2648.6,0.11655139]
[1727765034168,3.77545,2648.7,2648.2,23.20612]
[1727765034374,3.77545,2648.7,2648.6,0.11655139]
[1727765034585,3.77545,2648.7,2648.2,23.20612]
[1727765034586,3.77558,2648.6,2648.2,19.43]
[1727765034892,3.77543,2648.7,2648.2,23.20611]
[1727765035219,3.7756,2648.6,2648.3,0.11673639]
[1727765035503,3.7756,2648.6,2648.2,19.43]
[1727765035700,7.55126,2648.6,2648.4,0.11667472]
[1727765035859,3.7756,2648.6,2648.3,0.11673639]
[1727765036060,9.15588329,2648.8,2648.2,23.20607]
[1727765036302,1.60510329,2648.8,2648.3,0.91633639]
[1727765036509,3.77568,2648.6,2648.3,0.91633639]
[1727765037061,3.77543,2648.7,2648.3,0.91633639]
[1727765038081,3.77566,2648.6,2648.3,0.91633639]
[1727765039114,3.77543,2648.7,2648.3,0.91633639]
[1727765043330,4.54595,2649.1,2648.4,0.801]
[1727765043498,3.77515,2648.9,2648.4,4.57684]
[1727765043705,3.77534,2648.8,2648.5,0.11657855]
[1727765044002,9.15551329,2648.9,2648.5,0.11657855]
[1727765044318,5.38025329,2648.9,2648.5,0.11657855]
[1727765044685,5.38025329,2648.9,2648.5,0.58592541]
[1727765044890,9.15549329,2648.9,2648.5,0.11657855]
[1727765046298,3.77529,2648.8,2648.5,0.11657855]
[1727765046703,3.77545,2648.7,2648.5,0.11657855]
[1727765047035,9.15553329,2648.9,2648.5,0.11657855]
[1727765047263,3.77532,2648.8,2648.5,0.11657855]
[1727765055036,3.77545,2648.7,2648.5,0.11657855]
[1727765064893,3.77534,2648.8,2648.5,0.11657855]
[1727765065597,6.15107329,2649.1,2648.5,0.11657855]
[1727765065897,6.15107329,2649.1,2648.6,0.8269]
[1727765065898,3.77502,2649.0,2648.6,0.8269]
[1727765066103,3.77502,2649.0,2648.7,0.11646387]
[1727765066505,7.55016,2649.0,2648.7,0.11646387]
[1727765066794,3.77502,2649.0,2648.7,0.11646387]
[1727765068713,3.77515,2648.9,2648.7,0.11646387]
[1727765074882,7.55037,2648.9,2648.7,0.11646387]
[1727765075212,3.77515,2648.9,2648.7,0.11646387]
[1727765075826,5.38025329,2648.9,2648.7,0.11646387]
[1727765076121,4.57649,2648.8,2648.7,0.11646387]
[1727765076478,4.57649,2648.8,2648.4,19.43]
[1727765076679,4.57649,2648.8,2648.5,0.11656419]
[1727765077679,0.8012,2648.8,2648.5,0.11656419]
[1727765077879,4.57656,2648.8,2648.5,0.11656419]
[1727765078224,3.77557,2648.6,2648.5,0.11656419]
[1727765078723,4.60357,2648.6,2648.5,0.11656419]
[1727765081885,0.828,2648.6,2648.5,0.11284497]
[1727765082216,0.828,2648.6,2648.2,26.98218]
[1727765082540,1.60510329,2648.5,2648.2,23.20606]
[1727765083638,1.60510329,2648.8,2648.5,0.7673]
[1727765083786,0.8235,2649.2,2648.6,3.77556]
[1727765083990,0.8235,2649.2,2648.8,3.77527]
[1727765084215,0.8235,2649.5,2648.9,0.7673]
[1727765084395,0.8235,2649.5,2649.1,3.77485]
[1727765084615,2.42860329,2649.5,2649.0,3.775]
[1727765085191,2.42860329,2649.5,2649.1,0.11238593]
[1727765086081,1.60510329,2649.3,2649.1,0.11238593]
[1727765086618,1.60510329,2649.3,2649.2,0.11216043]
[1727765086992,1.60510329,2649.3,2648.9,0.818]
[1727765087218,1.60510329,2649.3,2649.2,0.11216043]
[1727765087731,1.60510329,2649.3,2648.9,0.818]
[1727765087936,1.60510329,2649.3,2649.2,0.11216043]
[1727765088148,1.60510329,2649.3,2648.9,0.818]
[1727765088293,1.60510329,2649.3,2649.2,0.11216043]
[1727765088492,1.60510329,2649.3,2648.9,0.818]
[1727765088687,1.60510329,2649.3,2649.0,0.1122837]
[1727765088919,2.22070762,2649.3,2649.0,0.1122837]
[1727765089132,7.57376,2649.1,2649.0,0.1122837]
[1727765089293,7.57376,2649.1,2648.2,0.7589]
[1727765089294,9.17886329,2649.1,2648.2,0.7589]
[1727765089506,1.60510329,2648.7,2648.3,3.87745619]
[1727765090193,1.60510329,2648.7,2648.3,0.10146619]
[1727765090590,1.60510329,2648.7,2648.2,0.7589]
[1727765090792,1.60510329,2648.7,2648.4,0.10140452]
[1727765090991,1.60510329,2648.7,2648.2,0.75777043]
[1727765091230,1.60510329,2648.7,2648.5,0.10134286]
[1727765091410,1.60510329,2648.7,2648.2,0.75777043]
[1727765091625,1.60510329,2648.7,2648.6,0.1012812]
[1727765091935,1.60510329,2648.7,2648.2,0.75777043]
[1727765092141,1.60510329,2648.7,2648.6,0.1012812]
[1727765092296,1.60510329,2648.7,2648.2,0.75777043]
[1727765092636,1.60510329,2648.7,2648.3,0.10146619]
[1727765093000,1.60510329,2648.7,2648.2,4.53389043]
[1727765093203,1.60510329,2648.7,2648.4,0.10140452]
[1727765093434,1.60510329,2648.7,2648.2,0.75777043]
[1727765093939,1.60510329,2648.7,2648.3,0.10146619]
[1727765094099,1.60510329,2648.7,2648.2,4.53391043]
[1727765094307,1.60510329,2648.7,2648.3,0.10146619]
[1727765094639,1.60510329,2648.7,2648.3,19.43]
[1727765094839,1.60510329,2648.7,2648.4,0.10140452]
[1727765098735,1.60510329,2648.9,2648.4,0.10140452]
[1727765100506,1.60510329,2648.9,2648.4,19.53140452]
[1727765101242,3.7748,2649.2,2648.5,4.59099]
[1727765101449,0.8235,2649.3,2648.7,4.5907]
[1727765101661,3.77451,2649.4,2648.8,4.59061]
[1727765101952,1.60510329,2649.3,2648.8,1.93148196]
[1727765102152,1.60510329,2649.3,2648.8,5.70674196]
[1727765103039,1.60510329,2649.3,2648.8,1.93148196]
[1727765103207,1.60510329,2649.3,2648.9,3.77514]
[1727765103649,1.60510329,2649.3,2649.0,0.1011662]
[1727765105104,1.60510329,2649.3,2648.8,4.59058]
[1727765105307,1.60510329,2649.3,2648.9,0.10122784]
[1727765106049,1.60510329,2649.3,2648.9,3.87636784]
[1727765106417,1.60510329,2649.3,2648.9,7.65150784]
[1727765106624,1.60510329,2649.3,2648.9,7.65142784]
[1727765106853,1.60510329,2649.3,2648.9,3.87628784]
[1727765107963,1.60510329,2649.3,2648.9,7.65135784]
[1727765108249,1.60510329,2649.3,2648.9,3.87628784]
[1727765111185,5.37968329,2649.3,2648.9,0.10122784]
[1727765111486,1.60510329,2649.1,2648.9,0.10122784]
[1727765112238,0.92030533,2649.3,2648.9,0.10122784]
[1727765112552,0.92030533,2649.3,2648.9,3.87632784]
[1727765112883,8.37949329,2649.5,2648.9,3.87626784]
[1727765113784,5.37949329,2649.5,2649.0,3.77494]
[1727765113938,5.37949329,2649.5,2649.0,3.87597748]
[1727765115380,5.37918329,2649.7,2649.1,4.55087]
[1727765115679,9.15330329,2649.7,2649.1,4.65183154]
[1727765115839,3.77415,2649.6,2649.1,4.65183154]
[1727765117043,3.77415,2649.6,2649.1,0.87706154]
[1727765117244,1.60510329,2649.5,2649.1,0.87706154]
[1727765118123,5.37939329,2649.5,2649.1,0.87706154]
[1727765118469,6.29474762,2649.5,2649.1,0.87706154]
[1727765118865,2.52045762,2649.5,2649.1,0.87706154]
[1727765119464,6.29487762,2649.5,2649.1,0.87706154]
[1727765120516,2.52045762,2649.5,2649.1,0.87706154]
[1727765121406,3.77415,2649.6,2649.1,0.87706154]
[1727765121595,5.37941329,2649.5,2649.1,0.87706154]
[1727765122007,1.60510329,2649.5,2649.1,0.87706154]
[1727765124652,1.60510329,2649.3,2649.1,0.10096154]
[1727765124816,5.37975329,2649.3,2648.8,0.8146]
[1727765125016,9.15443329,2649.3,2649.2,0.10083411]
[1727765125201,6.37339662,2649.3,2648.8,4.58989]
[1727765125430,6.37339662,2649.3,2649.2,0.10083411]
[1727765125595,6.37339662,2649.3,2648.8,4.58989]
[1727765125788,6.37339662,2649.3,2649.2,0.10083411]
[1727765126131,6.37339662,2649.3,2648.8,4.58989]
[1727765126426,5.37975329,2649.3,2648.8,4.58989]
[1727765126604,5.37975329,2649.3,2648.9,0.10101903]
[1727765128629,1.60510329,2649.1,2648.9,0.10101903]
[1727765129948,5.37998329,2649.1,2648.9,0.10101903]
[1727765130251,3.775,2649.0,2648.7,19.43]
[1727765130451,4.39335833,2649.0,2648.7,19.43]
[1727765130641,1.60510329,2648.9,2648.7,19.43]
[1727765132044,1.60510329,2649.1,2648.7,19.43]
[1727765132803,5.38007329,2649.1,2648.7,19.43]
[1727765133014,1.60510329,2649.1,2648.6,4.5415]
[1727765133246,1.60510329,2649.1,2648.7,3.7754]
[1727765133553,1.60510329,2649.1,2648.6,4.54157]
[1727765133554,5.38007329,2649.1,2648.6,4.54157]
[1727765134255,1.60510329,2649.1,2648.6,4.54157]
[1727765134463,4.57833,2649.2,2648.6,4.54157]
[1727765134464,3.77473,2649.2,2648.7,3.77532]
[1727765134759,3.77473,2649.2,2648.6,5.373305]
[1727765134760,5.37968329,2649.3,2648.8,4.59679]
[1727765137259,7.60395,2649.4,2648.9,3.77515]
[1727765137459,3.77445,2649.4,2648.9,4.612344]
[1727765137764,3.77445,2649.4,2649.0,0.7836]
[1727765138409,7.54898,2649.4,2649.0,0.7836]
[1727765139468,3.77445,2649.4,2649.0,0.7836]
[1727765143531,7.54898,2649.4,2649.0,0.7836]
[1727765144196,7.54896,2649.4,2649.0,0.7836]
[1727765145284,7.54896,2649.4,2649.1,0.10097868]
[1727765146331,3.7746,2649.3,2649.1,0.10097868]
[1727765150921,3.77472,2649.2,2649.1,0.10097868]
[1727765151235,6.16510329,2649.3,2648.9,19.43]
[1727765151407,6.16510329,2649.3,2649.1,0.10100729]
[1727765151619,6.16510329,2649.3,2648.9,19.43]
[1727765151933,6.16510329,2649.3,2649.2,0.10094565]
[1727765152115,6.16510329,2649.3,2648.9,19.43]
[1727765152302,6.16510329,2649.3,2649.2,0.10094565]
[1727765152507,6.16510329,2649.3,2648.9,19.43]
[1727765152720,6.16510329,2649.3,2649.2,0.10094565]
[1727765152922,6.16510329,2649.3,2648.9,19.43]
[1727765153442,6.16510329,2649.3,2649.0,0.10106892]
[1727765155010,4.56,2649.3,2649.0,0.10106892]
[1727765156333,3.77444,2649.4,2649.0,1.6119562]
[1727765156534,0.8114,2649.5,2649.1,0.7563]
[1727765156535,3.77442,2649.5,2649.1,0.7563]
[1727765156850,3.77442,2649.5,2649.2,0.10093422]
[1727765157651,3.7743,2649.5,2649.2,0.10093422]
[1727765163064,3.77417,2649.6,2649.2,0.10093422]
[1727765164348,3.77429,2649.5,2649.2,0.10093422]
[1727765164752,4.58543,2649.7,2649.2,0.10093422]
[1727765164958,3.77417,2649.6,2649.2,0.10093422]
[1727765166557,4.58543,2649.7,2649.2,0.10093422]
[1727765166854,3.77433,2649.5,2649.2,0.10093422]
[1727765167618,3.77415,2649.6,2649.2,0.10093422]
[1727765169720,7.54838,2649.6,2649.2,0.10093422]
[1727765169929,3.77415,2649.6,2649.2,0.10093422]
[1727765170133,0.7627,2649.9,2649.3,0.7932]
[1727765170434,3.77315,2650.3,2649.8,6.17216329]
[1727765170685,3.77301,2650.4,2649.9,0.7932]
[1727765170816,3.77301,2650.4,2649.9,0.89351418]
[1727765171252,3.77288,2650.5,2649.9,0.89351418]
[1727765171788,3.77288,2650.5,2650.0,3.7735]
[1727765172118,3.77277,2650.6,2650.2,0.8236]
[1727765172361,3.77276,2650.6,2650.2,0.8236]
[1727765172660,3.77276,2650.6,2650.3,0.10006782]
[1727765172846,3.77276,2650.6,2650.2,0.8236]
[1727765173048,3.77276,2650.6,2650.4,0.10000624]
[1727765173049,7.54558,2650.6,2650.4,0.10000624]
[1727765173247,5.15620133,2650.6,2650.2,0.8236]
[1727765173564,3.77276,2650.6,2650.5,0.09994467]
[1727765173731,3.7726,2650.7,2650.2,0.8236]
[1727765173925,3.7726,2650.7,2650.5,0.09994467]
[1727765174121,6.28883329,2650.8,2650.2,4.59689]
[1727765174353,3.87253,2650.8,2650.3,3.77314]
[1727765174798,3.87253,2650.8,2650.4,0.09979185]
[1727765176300,0.1,2650.8,2650.4,0.09979185]
[1727765178163,0.1,2650.8,2650.4,3.87279185]
[1727765179176,0.1,2650.8,2650.5,0.7929]
[1727765179386,0.1,2650.8,2650.7,0.7749]
[1727765179701,0.1,2650.8,2650.7,4.64703571]
[1727765179900,0.1,2650.8,2650.7,0.87445571]
[1727765180958,0.1,2650.8,2650.7,24.07703571]
[1727765182608,0.8815,2650.8,2650.7,19.52955571]
[1727765182774,5.27983833,2650.8,2650.7,0.09955571]
[1727765182976,1.50739833,2650.8,2650.0,19.43]
[1727765183177,1.60510329,2650.4,2650.0,19.43]
[1727765183375,1.60510329,2650.4,2650.1,0.09629791]
[1727765185014,3.77296,2650.5,2650.1,0.09629791]
[1727765186467,3.77296,2650.5,2650.1,19.52629791]
[1727765187306,3.77277,2650.6,2650.1,19.52629791]
[1727765188466,7.54559,2650.6,2650.1,19.52629791]
[1727765188863,3.77277,2650.6,2650.1,19.52629791]
[1727765190473,7.5456,2650.6,2650.1,19.52629791]
[1727765191009,3.77277,2650.6,2650.1,19.52629791]
[1727765191590,3.77277,2650.6,2650.1,23.29971791]
[1727765191765,3.77277,2650.6,2650.1,19.52629791]
[1727765192318,3.77277,2650.6,2650.1,23.29965791]
[1727765194320,4.65402,2650.8,2650.3,0.8281]
[1727765194529,7.64505,2650.8,2650.3,0.8281]
[1727765194816,3.87252,2650.8,2650.4,0.09630742]
[1727765195822,3.77266,2650.7,2650.4,0.09630742]
[1727765196683,0.8131,2650.6,2650.4,0.09630742]
[1727765197006,3.77266,2650.7,2650.5,0.09622013]
[1727765197211,3.77266,2650.7,2650.2,3.7732]
[1727765197451,3.77295,2650.5,2650.3,0.09634328]
[1727765197756,0.8061,2650.4,2650.1,19.43]
[1727765198341,3.77295,2650.5,2650.0,4.59359]
[1727765198546,3.77295,2650.5,2650.0,8.36709]
[1727765198700,3.77295,2650.5,2650.0,4.59359]
[1727765199351,3.77295,2650.5,2650.0,8.36707]
[1727765199649,0.8166,2650.6,2650.1,3.77343]
[1727765199802,0.8166,2650.6,2650.0,4.59358]
[1727765200008,3.77288,2650.5,2650.0,8.36708]
[1727765201155,0.8166,2650.6,2650.1,3.77343]
[1727765203333,3.77287,2650.5,2650.0,4.59358]
[1727765203546,3.77287,2650.5,2650.0,4.59357]
[1727765204222,3.77287,2650.5,2650.0,24.02357]
[1727765204571,3.77287,2650.5,2650.0,27.79708]
[1727765205347,3.77287,2650.5,2650.1,0.09647791]
[1727765205983,2.35948818,2650.2,2650.1,0.09647791]
[1727765206294,6.13278818,2650.2,2650.1,0.09647791]
[1727765206581,0.8317,2649.8,2649.3,4.59567]
[1727765206737,1.60298818,2649.7,2649.3,24.02567]
[1727765206934,1.60298818,2649.7,2649.4,0.09068755]
[1727765207147,1.60298818,2649.7,2649.4,3.86510755]
[1727765207466,0.8317,2649.8,2649.5,3.77425]
[1727765207673,0.8317,2649.8,2649.5,3.86500114]
[1727765208387,1.60298818,2649.9,2649.5,3.86500114]
[1727765208550,1.60298818,2649.9,2649.6,0.38650011]
[1727765208881,1.60298818,2649.9,2649.7,0.09062792]
[1727765209589,0.7595,2650.0,2649.7,0.09062792]
[1727765209889,4.5331,2650.0,2649.7,0.09062792]
[1727765210048,0.7595,2650.0,2649.5,3.77425]
[1727765210405,0.7595,2650.0,2649.8,0.09056631]
[1727765210685,0.7595,2650.0,2649.9,0.09050471]
[1727765210893,0.7595,2650.0,2649.5,7.54839]
[1727765211047,4.53314,2650.0,2649.9,0.09050471]
[1727765211383,3.77374,2649.9,2649.4,19.43]
[1727765211975,3.77374,2649.9,2649.4,23.20438]
[1727765212216,0.7595,2650.0,2649.5,3.77429]
[1727765212796,4.53317,2650.0,2649.5,3.77429]
[1727765213407,0.7595,2650.0,2649.4,19.43]
[1727765213628,3.77374,2649.9,2649.4,19.43]
[1727765214818,3.77374,2649.9,2649.4,23.20442]
[1727765217835,7.24844877,2649.9,2649.4,19.43]
[1727765218044,4.55567,2649.8,2649.4,19.43]
[1727765218349,0.7817,2649.8,2649.4,19.43]
[1727765218810,0.7817,2649.8,2649.4,23.20443]
[1727765219634,0.7817,2649.8,2649.4,26.97886]
[1727765219832,3.77374,2649.9,2649.4,26.97886]
[1727765220031,3.77374,2649.9,2649.4,23.20443]
[1727765220450,3.77374,2649.9,2649.5,0.0879813]
[1727765220851,0.7673,2650.4,2649.6,0.77]
[1727765221157,3.77322,2650.3,2649.8,4.54448]
[1727765221629,3.77322,2650.3,2649.9,3.86145487]
[1727765221952,3.77304,2650.4,2649.9,3.86145487]
[1727765222547,3.77304,2650.4,2649.9,7.63510487]
[1727765222749,3.77291,2650.5,2650.0,0.7808]
[1727765223056,3.77291,2650.5,2650.0,0.86847327]
[1727765224412,3.77309,2650.4,2650.0,0.86847327]
[1727765225935,7.54622,2650.4,2650.0,0.86847327]
[1727765226144,3.77309,2650.4,2650.0,0.86847327]
[1727765233650,5.37592579,2650.5,2650.0,4.64205327]
[1727765235679,3.77316,2650.3,2650.0,0.86847327]
[1727765235982,3.77303,2650.4,2650.0,0.86847327]
[1727765239653,3.77303,2650.4,2650.0,4.64203327]
[1727765240000,1.60304579,2650.5,2650.0,4.64203327]
[1727765240307,5.37595579,2650.5,2650.0,4.64203327]
[1727765240597,1.60304579,2650.5,2650.0,0.86847327]
[1727765240803,3.77309,2650.4,2650.0,0.86847327]
[1727765242304,3.1,2650.8,2650.0,0.86847327]
[1727765242305,1.60304579,2650.2,2650.0,0.08767327]
[1727765242510,4.00924458,2650.1,2650.0,0.08767327]
[1727765242664,4.76364458,2650.1,2650.0,0.08767327]
[1727765244469,4.76364458,2650.1,2649.4,0.7778]
[1727765244672,5.37693579,2649.8,2649.4,0.7778]
[1727765245870,4.52793,2650.1,2649.4,4.5522]
[1727765246073,3.77353,2650.1,2649.6,0.8036]
[1727765246294,3.77353,2650.1,2649.6,4.57772]
[1727765246873,3.77367,2650.0,2649.6,0.8036]
[1727765247073,5.37657579,2650.1,2649.6,0.8036]
[1727765247302,5.37657579,2650.1,2649.6,1.68510486]
[1727765247714,3.77353,2650.1,2649.6,1.68510486]
[1727765248015,7.54709,2650.1,2649.6,1.68510486]
[1727765248384,0.39469906,2651.0,2649.6,1.68510486]
[1727765248385,0.8072,2650.9,2650.1,0.8155]
[1727765248590,7.54476,2650.9,2650.3,3.77306]
[1727765248783,3.87245,2650.8,2650.4,1.57767083]
[1727765248985,0.1,2650.8,2650.4,1.57767083]
[1727765249314,7.54582,2650.5,2650.1,0.8155]
[1727765249712,3.77297,2650.5,2650.1,0.8155]
[1727765250371,3.77297,2650.5,2650.2,0.08434532]
[1727765250876,3.77276,2650.6,2650.2,0.08434532]
[1727765251119,7.54557,2650.6,2650.2,0.08434532]
[1727765252879,3.77289,2650.5,2650.2,0.08434532]
[1727765254198,3.77261,2650.7,2650.2,3.85759532]
[1727765254523,3.77261,2650.7,2650.3,0.46730953]
[1727765254744,3.77261,2650.7,2650.3,0.55156788]
[1727765255092,3.77261,2650.7,2650.3,0.08425835]
[1727765255293,3.87257,2650.8,2650.1,4.58881]
[1727765255528,3.77273,2650.6,2650.4,0.08419677]
[1727765255705,3.77273,2650.6,2650.1,4.58881]
[1727765255904,3.87257,2650.8,2650.5,0.0841352]
[1727765256092,3.77261,2650.7,2650.2,3.77329]
[1727765256290,3.7726,2650.7,2650.6,0.08407363]
[1727765256624,3.7726,2650.7,2650.2,4.6095]
[1727765256830,3.7726,2650.7,2650.6,0.08407363]
[1727765257293,3.7726,2650.7,2650.2,4.6095]
[1727765257501,3.7726,2650.7,2650.6,0.08123953]
[1727765257799,3.77275,2650.6,2650.1,0.8155]
[1727765258022,3.87257,2650.8,2650.1,6.04999742]
[1727765259335,3.77298,2650.5,2650.1,2.27661742]
[1727765259499,3.77277,2650.6,2650.1,2.27661742]
[1727765259898,3.77295,2650.5,2650.1,2.27661742]
[1727765260611,3.77295,2650.5,2650.1,0.8155]
[1727765265234,3.77295,2650.5,2650.2,0.08148583]
[1727765265433,3.87255,2650.8,2650.2,0.08148583]
[1727765265599,7.64507,2650.8,2650.3,4.55295]
[1727765265856,3.87252,2650.8,2650.3,4.55295]
[1727765266042,3.87252,2650.8,2650.4,0.08136267]
[1727765266543,3.87252,2650.8,2650.5,0.7944]
[1727765266544,0.1,2650.8,2650.5,0.7944]
[1727765266893,0.1,2650.8,2650.7,4.57628]
[1727765267049,0.1,2650.8,2650.7,24.00628]
[1727765267215,0.1,2650.8,2650.7,26.52479087]
[1727765267598,0.1,2650.8,2650.7,27.50831387]
[1727765268120,0.1,2650.8,2650.7,26.52479087]
[1727765275572,0.1,2650.8,2650.7,29.52479087]
[1727765276837,3.77099,2651.9,2651.4,0.8261]
[1727765277154,4.59134,2652.0,2651.5,3.85175953]
[1727765277333,3.77076,2652.0,2651.5,3.85172953]
[1727765277750,7.5416,2652.0,2651.5,3.85172953]
[1727765278542,7.5416,2652.0,2651.5,0.08035953]
[1727765278543,3.77091,2651.9,2651.5,0.08035953]
[1727765281241,3.77091,2651.9,2651.5,19.51035953]
[1727765284082,3.77102,2651.9,2651.5,19.51035953]
[1727765287176,3.77076,2652.0,2651.5,19.51035953]
[1727765287981,3.77076,2652.0,2651.5,23.28178953]
[1727765288443,3.77076,2652.0,2651.5,27.05321953]
[1727765288606,3.77076,2652.0,2651.5,23.28178953]
[1727765295788,3.7709,2651.9,2651.5,19.51035953]
[1727765295993,3.77076,2652.0,2651.5,19.51035953]
[1727765296192,3.77076,2652.0,2651.5,23.28179953]
[1727765299751,0.39451584,2652.3,2651.5,23.28179953]
[1727765299752,1.30109303,2651.9,2651.5,19.51035953]
[1727765299894,1.6011703,2651.6,2651.5,19.51035953]
[1727765300090,1.6011703,2651.8,2651.5,19.51035953]
[1727765300296,3.77098,2651.9,2651.5,19.51035953]
[1727765300518,3.77098,2651.9,2651.6,0.8227]
[1727765300830,3.77098,2651.9,2651.7,0.07426673]
[1727765301033,7.54196,2651.9,2651.7,0.07426673]
[1727765301286,7.54194,2651.9,2651.7,0.07426673]
[1727765301536,3.77096,2651.9,2651.7,0.07426673]
[1727765306122,1.6011703,2651.8,2651.7,0.07426673]
[1727765306319,1.6011703,2651.8,2651.4,20.2278]
[1727765306559,1.6011703,2651.8,2651.5,0.07438977]
[1727765310366,1.6011703,2651.6,2651.5,0.07438977]
[1727765311159,1.6011703,2651.6,2651.2,3.77185]
[1727765311369,1.6011703,2651.6,2651.3,0.0745604]
[1727765311540,1.6011703,2651.6,2651.1,0.7608]
[1727765311732,1.6011703,2651.6,2651.2,0.07462193]
[1727765312365,1.6011703,2651.6,2651.2,3.84649193]
[1727765312664,5.3725003,2651.6,2651.2,0.07462193]
[1727765312846,1.6011703,2651.6,2651.2,0.07462193]
[1727765313034,1.6011703,2651.6,2651.2,3.84648193]
[1727765313439,5.3725103,2651.6,2651.2,0.07462193]
[1727765314767,1.6011703,2651.6,2651.2,0.07462193]
[1727765314984,1.6011703,2651.6,2651.2,3.84648193]
[1727765315137,1.6011703,2651.6,2651.2,0.07462193]
[1727765315138,1.6011703,2651.4,2651.2,0.07462193]
[1727765315564,1.6011703,2651.4,2651.1,3.77198]
[1727765315774,1.6011703,2651.4,2651.3,0.07464719]
[1727765315979,1.6011703,2651.4,2651.2,0.07470872]
[1727765316279,1.6011703,2651.4,2651.1,3.77198]
[1727765316280,1.6011703,2651.4,2651.3,0.07464719]
[1727765316678,1.6011703,2651.4,2651.1,3.77198]
[1727765316972,1.6011703,2651.6,2651.3,0.07464719]
[1727765317179,1.6011703,2651.6,2651.2,3.84655872]
[1727765319147,5.3724703,2651.6,2651.2,3.84655872]
[1727765320173,5.3724703,2651.6,2651.2,0.07470872]
[1727765323991,5.3724703,2651.6,2651.1,3.77201]
[1727765324178,5.3724703,2651.6,2651.2,0.07478152]
[1727765324686,3.7713,2651.6,2651.3,0.7947]
[1727765325041,3.7713,2651.6,2651.4,0.07465846]
[1727765327182,9.1434303,2651.8,2651.4,0.07465846]
[1727765327768,5.3722903,2651.8,2651.4,0.07465846]
[1727765328047,3.77119,2651.7,2651.4,0.07465846]
[1727765328794,5.3722003,2651.8,2651.4,0.53877931]
[1727765329447,9.1433203,2651.8,2651.4,0.53877931]
[1727765329649,3.77119,2651.7,2651.4,0.53877931]
[1727765329878,3.77119,2651.7,2651.4,0.07465846]
[1727765330078,3.77103,2651.8,2651.4,0.07465846]
[1727765330267,7.54216,2651.8,2651.4,0.07465846]
[1727765330468,3.77118,2651.7,2651.4,0.07465846]
[1727765330851,7.54214,2651.8,2651.4,0.07465846]
[1727765331162,3.77103,2651.8,2651.4,0.53877231]
[1727765331359,1.6011703,2651.9,2651.4,0.53877231]